Cogmind - Beta 9.6 @@@ ROGUE MODE // 2020.05.27 @ 18:01:44 Player: RNGesus Result: Destroyed by G-47 Trooper with Particle Gun Performance ------------- Evolutions (0) 0 Regions Visited (1) 200 Robots Destroyed (21) 105 Value Destroyed (460) 460 Prototype IDs (0) 0 Alien Tech Used (0) 0 Bonus (0) 0 TOTAL SCORE: 765 Bonus ------- None Cogmind --------- Core Integrity 0/250 Matter 290/300 Energy 250/250 System Corruption 1% Temperature Cool (9) Movement Treading (200) Ox2 Location -10/Materials Parts ------- > --- POWER (1) -------- Ion Engine > --- PROPULSION (2) --- Light Treads Aluminum Leg > --- UTILITY (2) ------ Large Storage Unit Large Storage Unit > --- WEAPON (2) ------- Mining Claw Mining Claw > --- INVENTORY (16) --- Ion Engine Light Ion Engine Light Treads Aluminum Leg Aluminum Leg Aluminum Leg Improved Heat Sink Medium Storage Unit Signal Interpreter Hacking Suite Hacking Suite Small Laser Grenade Launcher Mining Claw Peak State ------------ > --- POWER ------------ Ion Engine > --- PROPULSION ------- Aluminum Leg Aluminum Leg > --- UTILITY ---------- Large Storage Unit Large Storage Unit > --- WEAPON ----------- Mining Claw Mining Claw > --- INVENTORY -------- Ion Engine Light Ion Engine Light Treads Aluminum Leg Aluminum Leg Aluminum Leg Improved Heat Sink Medium Storage Unit Signal Interpreter Hacking Suite Hacking Suite Small Laser Grenade Launcher Mining Claw [Rating: 9] Favorites ----------- Power Ion Engine Engine Ion Engine Propulsion Aluminum Leg Treads Light Treads Leg Aluminum Leg Utility Large Storage Unit Storage Large Storage Unit Weapon Medium Laser Energy Gun Medium Laser Ballistic Gun Light Assault Rifle Launcher Grenade Launcher Slashing Weapon Mining Claw Build | -11 -10 ------- Run | Scr Mat Slots Evolved . | . . Power . | . . Propulsion . | . . Utility . | . . Weapon . | . . Parts Attached 21 | 5 16 Power 2 | . 2 Engine 2 | . 2 Core . | . . Reactor . | . . Propulsion 7 | 2 5 Treads 1 | . 1 Leg 6 | 2 4 Wheel . | . . Hover . | . . Flight . | . . Utility 3 | 1 2 Device . | . . Storage 3 | 1 2 Processor . | . . Hackware . | . . Protection . | . . Artifact . | . . Weapon 9 | 2 7 Energy Gun 4 | 1 3 Energy Cannon . | . . Ballistic Gun 1 | 1 . Ballistic Cannon . | . . Launcher 2 | . 2 Special Weapon . | . . Impact Weapon . | . . Slashing Weapon 2 | . 2 Piercing Weapon . | . . Special Melee Weapon . | . . Unidentified Prototypes . | . . Parts Lost 7 | . 7 Power 1 | . 1 Propulsion 1 | . 1 Utility . | . . Weapon 5 | . 5 Highest Loss Streak 2 | . 2 Average Slot Usage (%) 90 | . 90 Engine 11 | . 11 Leg 27 | . 27 Storage 26 | . 26 Energy Gun 10 | . 10 Ballistic Gun 3 | . 3 Slashing Weapon 8 | . 8 Naked Turns . | . . Heaviest Build 42 | 7 42 Greatest Support 20 | 20 20 Greatest Overweight (x) 2 | . 2 Average Overweight (x) 1 | . 1 Largest Inventory Capacity 16 | 6 16 Average Capacity 14 | 5 15 Most Carried 15 | 3 15 Average Carried 10 | 1 10 Final Capacity 16 | 6 16 Final Carried 14 | 3 14 Class Distribution -------------------- 100% | Mutant Dominant Class ---------------- Mutant | -10/Materials Resources | -11 -10 ----------- Run | Scr Mat Matter Collected 415 | 173 242 Remotely . | . . Salvage Created 693 | . 693 Parts 48 | . 48 Haulers Intercepted 2 | . 2 Recyclers Shooed . | . . Parts Field Recycled . | . . Retrieved Matter . | . . Parts Self-Destructed . | . . Prevented . | . . Kills | -11 -10 ------- Run | Scr Mat Combat Hostiles Destroyed 15 | . 15 Melee 4 | . 4 Guns 11 | . 11 Classes Destroyed 6 | . 6 Hauler 2 | . 2 Recycler 1 | . 1 Operator 2 | . 2 Watcher 1 | . 1 Swarmer 6 | . 6 Grunt 9 | . 9 Best Kill Streak 4 | . 4 Combat Bots Only 3 | . 3 Max Kills in Single Turn 1 | . 1 Gunslinging . | . . Exploded . | . . Melee 1 | . 1 Uniques/NPCs Destroyed . | . . Combat | -11 -10 -------- Run | Scr Mat Damage Taken 1113 | . 1113 Core 256 | . 256 Absorbed by Shields . | . . Core Remaining (%) 100 | 100 . Volleys Fired 64 | . 64 Largest 2 | . 2 Hottest 100 | . 100 Shots Fired 102 | . 102 Gun 101 | . 101 Cannon . | . . Launcher 1 | . 1 Special . | . . Kinetic 35 | . 35 Thermal 66 | . 66 Explosive 1 | . 1 Electromagnetic . | . . Robot Hit Streak 11 | . 11 Robot Miss Streak 3 | . 3 Penetration Max . | . . Secondary Targets . | . . Shots Hit Robots 84 | . 84 Core Hits 32 | . 32 Critical Hits 1 | . 1 Critical Kills . | . . Critical Parts Destroyed 1 | . 1 Melee Attacks 37 | . 37 Impact . | . . Slashing 37 | . 37 Piercing . | . . Sneak Attacks 4 | . 4 Combat Hostiles . | . . Follow-up Attacks 2 | . 2 Damage Inflicted 1375 | . 1375 Guns 646 | . 646 Cannons . | . . Explosions . | . . Melee 729 | . 729 Ramming . | . . Kinetic 109 | . 109 Thermal 537 | . 537 Explosive . | . . Electromagnetic . | . . Impact . | . . Slashing 729 | . 729 Piercing . | . . Highest Corruption 1 | . 1 Average Corruption 1 | . 1 Corruption Purged . | . . Overload Shots . | . . Overflow Damage 141 | . 141 Projectiles . | . . Explosions . | . . Melee 141 | . 141 Knockbacks . | . . Impact . | . . Kinetic . | . . Secondary . | . . Self-Inflicted Damage . | . . Shots . | . . Rammed . | . . Targets Rammed . | . . Kicked . | . . Crushed . | . . Highest Temperature 303 | . 303 Average Temperature 78 | . 78 Received Heat Transfer 516 | . 516 Effects 2 | . 2 Interference 2 | . 2 Siege Activations . | . . Robots Corrupted . | . . Combat Hostiles . | . . Parts Fried . | . . Impact Corruptions . | . . Robots Melted . | . . Combat Hostiles . | . . Parts Melted 2 | . 2 Heat Transferred 1509 | . 1509 Parts Sabotaged . | . . Parts Stolen . | . . Parts Stripped . | . . Power Chain Reactions . | . . Missiles Intercepted . | . . Alert | -11 -10 ------- Run | Scr Mat Peak Influence 198 | . 198 Average Influence 92 | . 95 Maximum Alert Level . | . . Low Security (%) 100 | 100 100 Level 1 . | . . Level 2 . | . . Level 3 . | . . Level 4 . | . . Level 5 . | . . High Security . | . . Max Security . | . . Squads Dispatched 3 | . 3 Investigation 1 | . 1 Extermination . | . . Reinforcement 2 | . 2 Assault . | . . Garrison . | . . Intercept . | . . Construction Impeded . | . . Haulers Reinforced . | . . Stealth | -11 -10 --------- Run | Scr Mat Distress Signals 2 | . 2 Communications Jammed . | . . Distress Signals . | . . Times Spotted 26 | . 26 Peak Tracking Total 5 | . 5 Tactical Retreats . | . . Traps | -11 -10 ------- Run | Scr Mat Traps Triggered 2 | . 2 Indirectly . | . . Trap Hack Attempts . | . . Triggered . | . . Disarmed . | . . Reprogrammed . | . . Reused . | . . Traps Extracted . | . . Installed . | . . Triggered . | . . Machines | -11 -10 ---------- Run | Scr Mat Machines Disabled 1 | . 1 Max in Single Turn 1 | . 1 Machines Sabotaged . | . . Garrisons Compromised . | . . Overloaded Fab Kills . | . . Fab Network Shutdowns . | . . Hacking | -11 -10 --------- Run | Scr Mat Machines Accessed 3 | . 3 Terminals 3 | . 3 Fabricators . | . . Repair Stations . | . . Recycling Units . | . . Scanalyzers . | . . Garrison Access . | . . Total Hacks 6 | . 6 Successful 1 | . 1 Failed 5 | . 5 Catastrophic 2 | . 2 Database Lockouts . | . . Manual 6 | . 6 Terminals 6 | . 6 Fabricators . | . . Repair Stations . | . . Recycling Units . | . . Scanalyzers . | . . Garrison Access . | . . Terminal Hacks . | . . Fabricator Hacks . | . . Repair Station Hacks . | . . Recycling Unit Hacks . | . . Scanalyzer . | . . Garrison Access Hacks . | . . Unauthorized Hacks 1 | . 1 Terminals 1 | . 1 Operators 1 | . 1 Fabricators . | . . Repair Stations . | . . Recycling Units . | . . Scanalyzers . | . . Garrison Access . | . . Data Cores Recovered . | . . Used . | . . Hacking Detections 1 | . 1 Full Trace Events . | . . Feedback Events . | . . Feedback Blocked . | . . Robot Schematics Acquired . | . . Robots Built . | . . Matter . | . . Time . | . . Total Robot Build Rating . | . . Part Schematics Acquired . | . . Parts Built . | . . Matter . | . . Time . | . . Total Part Build Rating . | . . Parts Repaired . | . . Time . | . . Parts Recycled . | . . Recycled Matter . | . . Retrieved Matter . | . . Retrieved Components . | . . Parts Scanalyzed . | . . Part Schematics Acquired . | . . Parts Damaged . | . . Bothacking | -11 -10 ------------ Run | Scr Mat Used RIF Installer . | . . Robots Hacked . | . . Non-combat . | . . Combat . | . . Robot Hacks Applied . | . . Relay Couplers Released . | . . Robots Rewired . | . . Allies Hacked . | . . Hacks Repelled . | . . Allies | -11 -10 -------- Run | Scr Mat Total Allies . | . . Largest Group . | . . Highest-Rated Group . | . . Highest-Rated Ally . | . . Total Orders . | . . Ally Attacks . | . . Total Damage . | . . Kills . | . . Allies Corrupted . | . . Allies Melted . | . . Intel | -11 -10 ------- Run | Scr Mat Robot Analysis Total . | . . Derelict Logs Recovered . | . . Drone Launches . | . . Drone Recoveries . | . . Exploration | -11 -10 ------------- Run | Scr Mat Turns Passed 1246 | 46 1200 Spaces Moved 583 | 34 549 Core 6 | 6 . Treads . | . . Legs 577 | 28 549 Wheels . | . . Hover . | . . Flight . | . . Fastest Speed 50 | 50 120 Average Speed 154 | 107 157 Slowest Speed 180 | 120 180 Overloaded Moves . | . . Propulsion Burnouts . | . . Robots Hopped . | . . Cave-ins Triggered . | . . Exploration Rate (%) 41 | 4 79 Regions Visited 1 Branch Regions . Pre-discovered Areas . | . . Known Exits Taken . | . . Unknown Exits Taken 1 | 1 . Scrap Searched . | . . Spaces Dug 7 | . 7 Terrain Destroyed 7 | . 7 Melee 2 | . 2 Projectile . | . . AOE 5 | . 5 Actions | -11 -10 --------- Run | Scr Mat Total 763 | 41 722 Wait 39 | . 39 Move 582 | 33 549 Hop . | . . Pick Up 21 | 3 18 Fast Attach 6 | 5 1 Attach 8 | . 8 Detach . | . . Swap 7 | . 7 Drop 4 | . 4 Fire 64 | . 64 Melee 32 | . 32 Ram . | . . Kick . | . . Crush . | . . Escape Stasis . | . . Rewire . | . . Trap . | . . Miscellaneous . | . . Route ------- -11/Scrapyard -10/Materials (discovered 3 exits: [*Mat x2] / [*Min]) History --------- Turn | Location | Event 4 | -11/Scrapyard | Discovered new exit (range 16) 47 | -11/Scrapyard | Entered Materials 304 | -10/Materials | Build established: Mutant 609 | -10/Materials | Discovered new exit (range 5) 799 | -10/Materials | Discovered new exit (range 15) 850 | -10/Materials | Discovered new exit (range 14) 966 | -10/Materials | Core integrity fell below 50% 991 | -10/Materials | Core integrity fell below 20% 1247 | -10/Materials | Destroyed by G-47 Trooper with Particle Gun Last Messages --------------- 01076_ The floor emits a surge of raw power. 01076_ System corrupted (+1). 01078_ K-01 Serf collects debris. 01107_ Acquired Lgt. Treads. 01107_ R-06 Scavenger collects Sml. Laser. 01110_ R-06 Scavenger collects Aluminum Leg. 01113_ Acquired Lgt. Treads. 01114_ R-06 Scavenger collects Weight Redist. System. 01118_ R-06 Scavenger collects Structural Scanner. 01132_ Sneak attack on R-06 Scavenger. 01132_ Destroyed Com. Wheel. 01132_ Destroyed Tractor Beam. 01132_ Sneak attack on R-06 Scavenger. 01132_ Mining Claw follow-up attack on R-06 Scavenger. 01132_ Destroyed Lgt. Ion Engine. 01134_ M-13 Machinist fits Backup Power I on R-06 Scavenger. 01139_ K-01 Serf cleans the Material Compactor. 01144_ M-13 Machinist fits Backup Propulsion I on R-06 Scavenger. 01232_ Lgt. Nuclear Core severed. 01235_ Aluminum Leg destroyed. Map ----- +----------------------------------------------------+ | | | ?????????????????????????????????????????????????? | | ?????????????????????????????????????????????????? | | ?????????????????????????????????????????????????? | | "????????????????????????????????????????????????? | | "????????????????????????????????????????????????? | | ""???????????????????????????????????????????????? | | ""?????????????????????????????????????????????### | | "" ????# """"""" #?????????????????????????????# ! | | "" ?#### """"""" #?????????????????????????????# | | " # # """"""" #???????????#####?????????????# | | " # # """"""" #???????????# #?????????????# | | " + + """"""" ????????????# < #?????????????# | | # #?? ??????????????# #?????????????# | | ##### ##??#+#?#######???????# #?????????????# | | ???# #### # ???????# #??????########! | | ???# ^ # """ ??????# #??????# ## | | ???# + """ ??????# #??????#"" ###+ | | ???# # """ !!!??????# ########" #?# | | #####^ ! # /!???????# # #"" ### | | #^ ^ #? ! !! ??????# # """ # # | | + """ #?############??# + """ " + | | # """ ####### #??# # """ # """ # | | + """ # #### # # """ # | | # # """ gg # ! # """ #### | | ! + # """ @#+###+######### """ #??? | | ###### # """ # #???# #??? | | ###########+##### # # """#???# ! #??? | | ????# # ######## R"#???#######??? | | ????# # #??????# """#????????????? | | ????# # #??????# """" #????????????? | | ????# """ """ # #??????# """" #????????????# | | ????# """ """ # #??????# """" #????????????# | | ????# """ """ # #??????# #????????????# | | ????# # ####???##+###########?????????? | | ????###+######### ###### ### #####?????? | | ?????# ^ ????? | | ?????# [ ^ < ????? | | ?????# // = ????? | | ?????######## ## #####?????? | | ????????????# ###### #? "!"!" #?????????? | | ????????????# # # #??"!"!""#?????????? | | ????????##### + + #???#####??????????? | | ????????# """ # # #??????????????????? | | ????????# < """ # ### #??????????????????? | | ????????# """ # #?# #??????????????????? | | ????????#### # #?# #??????????????????? | | ???????????# # #?# #?#####????????????? | | ???????????# """ %%# #?# #?# #????????????? | | ???????????# """ # #?? #?# T #????????????? | +----------------------------------------------------+ Best States ------------- Heat Dissipation 25 Energy Generation 10 Energy Capacity 250 Matter Stores 300 Matter Capacity 300 Sight Range 16 Terrain Scan Density 10 Evasion (%) 40 Item Schematics ----------------- None Robot Schematics ------------------ None Fabricated ------------ Nothing Alien Tech Used ----------------- None Achievements -------------- None Challenges ------------ None Game ------ Seed NodeCompactInsulator Manual? 0 Play Time 00:10:51 Cumulative 230.7 hours Start 2020.05.27 @ 17:56:06 End 2020.05.27 @ 18:01:44 Sessions 1 Manual Loads 0 Difficulty Rogue Special Mode None Game No. 375 Rogue 375 Adventurer 0 Explorer 0 Win Type - Total 5 Types 3/0/1/1/0/0/0 Lore% 78 Gallery% 79 Achievement% 60 Wizard Run 0 Options --------- ASCII 0 Keyboard 1 Movement Numpad Keybinds 0 Fullscreen 2 Font 18/X11Bold Map View 76x50 Tactical HUD 1 Map Filters NONE Filters NONE Steam 1 RUN: 105b1f30-e913-485f-bc7c-37ce5780e159